bitfinex/quotes_BTCUSD_20250114
["timestamp","ask_amount","ask_price","bid_price","bid_amount"]
[1736835885804,0.10366386,94908.0,94907.0,1.65649324]
[1736835886014,0.10366386,94908.0,94907.0,2.15659624]
[1736835888368,0.00379067,94908.0,94907.0,2.15659624]
[1736835890348,0.00279067,94908.0,94907.0,2.15659624]
[1736835890637,0.00379067,94908.0,94907.0,2.15659624]
[1736835891060,0.00379067,94908.0,94907.0,2.15159624]
[1736835891476,0.00279067,94908.0,94907.0,2.38409624]
[1736835891885,0.09987319,94934.0,94924.0,0.210692]
[1736835892084,0.09987319,94934.0,94925.0,2.77367139]
[1736835892286,0.0751,94935.0,94925.0,2.77367139]
[1736835892287,0.1,94937.0,94927.0,0.10980384]
[1736835892491,0.0751,94942.0,94928.0,2.25393685]
[1736835892674,0.210657,94941.0,94929.0,3.72053168]
[1736835892874,0.210657,94941.0,94930.0,1.62516355]
[1736835893050,0.210657,94941.0,94931.0,1.73137839]
[1736835893252,0.0751,94942.0,94931.0,1.73137839]
[1736835893253,0.17497319,94942.0,94932.0,1.47749855]
[1736835893449,0.0751,94942.0,94933.0,3.05445139]
[1736835893656,0.09987319,94938.0,94934.0,1.27953955]
[1736835893895,0.09987319,94938.0,94935.0,1.38407239]
[1736835894182,0.09987319,94938.0,94936.0,0.95686255]
[1736835894348,0.09987319,94938.0,94937.0,2.10637584]
[1736835894556,0.09987319,94938.0,94937.0,2.13998223]
[1736835895120,0.09987319,94938.0,94937.0,2.14598223]
[1736835895743,0.09987319,94938.0,94937.0,2.14686354]
[1736835896321,0.19987319,94938.0,94937.0,2.14683759]
[1736835896690,0.001,94938.0,94937.0,2.14683759]
[1736835896961,0.1,94938.0,94937.0,2.14683759]
[1736835897180,0.1,94952.0,94938.0,0.15]
[1736835897371,0.00179151,94954.0,94944.0,0.36065]
[1736835897620,0.00179151,94954.0,94948.0,0.10980384]
[1736835897766,0.00179151,94954.0,94953.0,1.5]
[1736835897979,0.00179151,94954.0,94953.0,2.06851684]
[1736835898185,0.00179151,94954.0,94953.0,2.0716589]
[1736835899615,0.00279151,94954.0,94953.0,2.0716589]
[1736835900195,0.00379151,94954.0,94953.0,2.0716589]
[1736835900390,0.00279151,94954.0,94953.0,2.0716589]
[1736835900608,0.00379151,94954.0,94953.0,2.2216589]
[1736835900814,0.00279151,94954.0,94953.0,2.2216589]
[1736835901224,0.00379151,94954.0,94953.0,2.2216589]
[1736835901426,0.00279151,94954.0,94953.0,2.2216589]
[1736835901824,0.00379151,94954.0,94953.0,2.2216589]
[1736835902022,0.00279151,94954.0,94953.0,2.2216589]
[1736835902268,0.00279151,94954.0,94953.0,2.23492131]
[1736835902593,0.00379151,94954.0,94953.0,2.24091714]
[1736835902805,0.00279151,94954.0,94953.0,2.24091714]
[1736835903009,0.00279151,94954.0,94953.0,2.32051714]
[1736835903902,0.00279151,94954.0,94953.0,2.32351714]
[1736835904405,0.00279151,94954.0,94953.0,1.86180414]
[1736835904546,0.00279151,94954.0,94953.0,4.12467314]
[1736835904752,0.00279151,94954.0,94953.0,4.12479614]
[1736835904948,0.00279151,94954.0,94953.0,3.55594214]
[1736835905153,0.00279151,94954.0,94953.0,3.55894214]
[1736835905417,0.00279151,94954.0,94953.0,3.55594214]
[1736835905827,0.00279151,94954.0,94953.0,3.55994214]
[1736835906244,0.00279151,94954.0,94953.0,3.55894214]
[1736835907121,0.00279151,94954.0,94953.0,3.55594214]
[1736835907328,0.00279151,94954.0,94953.0,3.59266283]
[1736835907502,0.00279151,94954.0,94953.0,3.59278964]
[1736835907711,0.00279151,94954.0,94953.0,3.58978964]
[1736835907977,0.00279151,94954.0,94953.0,3.59378964]
[1736835908315,0.00279151,94954.0,94953.0,3.58978964]
[1736835908896,0.00179109,94973.0,94954.0,0.15]
[1736835909094,0.00179109,94973.0,94969.0,0.10980384]
[1736835909270,0.00179109,94973.0,94971.0,0.15]
[1736835909610,0.00179109,94973.0,94972.0,3.04894584]
[1736835909802,0.00179109,94973.0,94972.0,3.05653884]
[1736835910390,0.00179109,94973.0,94972.0,3.05668517]
[1736835910798,0.00179109,94973.0,94972.0,2.47017717]
[1736835910997,0.00179109,94973.0,94972.0,2.35634217]
[1736835911220,0.00179109,94973.0,94972.0,2.35434217]
[1736835912349,0.00179109,94973.0,94972.0,2.36673169]
[1736835912722,0.00179109,94973.0,94972.0,2.35244209]
[1736835912930,0.27666428,94973.0,94972.0,1.99581509]
[1736835913140,0.27766428,94973.0,94972.0,1.87487647]
[1736835913356,0.27766428,94973.0,94972.0,1.87387647]
[1736835915465,0.00279109,94973.0,94972.0,1.87387647]
[1736835916234,0.00279109,94973.0,94972.0,2.02387647]
[1736835917468,0.00279109,94973.0,94972.0,2.03019979]
[1736835917895,0.00279109,94973.0,94972.0,2.03119979]
[1736835918093,0.00279109,94973.0,94972.0,0.53119979]
[1736835918675,0.00279109,94973.0,94972.0,2.03119979]
[1736835922666,0.00279109,94973.0,94972.0,2.03019979]
[1736835923075,0.00279109,94973.0,94972.0,2.03119979]
[1736835925092,0.00279109,94973.0,94972.0,2.06394357]
[1736835925606,0.00279109,94973.0,94972.0,2.06294357]
[1736835925820,0.09987319,94983.0,94973.0,0.360585]
[1736835926017,0.09987319,94983.0,94979.0,0.15]
[1736835926222,0.09987319,94983.0,94980.0,2.66711284]
[1736835926420,0.1,94982.0,94981.0,1.657661]
[1736835926803,0.1,94982.0,94981.0,1.66074984]
[1736835926920,0.1,94982.0,94981.0,1.01864984]
[1736835927121,0.1,94982.0,94981.0,0.93511384]
[1736835927331,0.32447319,94982.0,94981.0,0.11580384]
[1736835927521,0.32447319,94982.0,94981.0,0.10980384]
[1736835927724,0.32447319,94982.0,94981.0,0.65197322]
[1736835927725,0.1,94982.0,94981.0,0.65197322]
[1736835927933,0.09987319,94983.0,94981.0,2.33058122]
[1736835928135,0.09987319,94983.0,94982.0,2.84113184]
[1736835928339,0.09987319,94983.0,94982.0,2.78236808]
[1736835928604,0.09987319,94983.0,94982.0,2.77206908]
[1736835928798,0.1,94987.0,94982.0,2.79167146]
[1736835929135,0.00179067,94990.0,94984.0,0.15]
[1736835929351,0.09987319,94988.0,94986.0,0.15]
[1736835929519,0.09987319,94988.0,94987.0,1.55935981]
[1736835929947,0.09987319,94988.0,94987.0,1.56242647]
[1736835930149,0.00179067,94990.0,94988.0,0.15]
[1736835930391,0.00179067,94990.0,94989.0,0.29568604]
[1736835930614,0.00179067,94990.0,94989.0,3.68937204]
[1736835930789,0.00179067,94990.0,94989.0,2.03193904]
[1736835930953,0.00179067,94990.0,94989.0,3.27206704]
[1736835931154,0.00179067,94990.0,94989.0,3.28112942]
[1736835931358,0.00179067,94990.0,94989.0,2.94145242]
[1736835931557,0.00179067,94990.0,94989.0,2.78635742]
[1736835931980,0.09987319,94996.0,94990.0,0.15]
[1736835932173,0.09987319,94996.0,94992.0,0.15]
[1736835932519,0.09987319,94996.0,94991.0,1.29961661]
[1736835932520,0.09987319,94996.0,94994.0,0.15]
[1736835932671,0.09987319,94996.0,94995.0,0.14262381]
[1736835932878,0.09987319,94996.0,94995.0,0.96168781]
[1736835933310,0.09987319,94996.0,94995.0,2.46473674]
[1736835934127,0.09987319,94996.0,94995.0,2.48433912]
[1736835934566,0.1,94997.0,94995.0,2.48433912]
[1736835934747,0.19987319,94997.0,94996.0,1.18929097]
[1736835934910,0.19987319,94997.0,94996.0,1.29909481]
[1736835935512,0.1,94997.0,94996.0,1.31869719]
[1736835935947,0.1,94997.0,94996.0,0.74789719]
[1736835936294,0.19987319,94997.0,94996.0,0.36202519]
[1736835937012,0.19987319,94997.0,94996.0,0.36707191]
[1736835937190,0.19987319,94997.0,94996.0,0.16727291]
[1736835937393,0.19987319,94997.0,94996.0,0.16527291]
[1736835937734,0.19987319,94997.0,94996.0,0.33273691]
[1736835938012,0.19987319,94997.0,94996.0,0.34754291]
[1736835938181,0.28247319,94997.0,94996.0,0.16527291]
[1736835938383,0.32817319,94997.0,94996.0,0.0286491]
[1736835938790,0.32817319,94997.0,94996.0,0.02560238]
[1736835940018,0.32817319,94997.0,94996.0,1.52560238]
[1736835940192,0.32817319,94997.0,94996.0,0.02560238]
[1736835940393,0.32817319,94997.0,94996.0,0.03185081]
[1736835940588,0.32817319,94997.0,94996.0,0.02560238]
[1736835940828,0.32817319,94997.0,94996.0,1.52560238]
[1736835941012,0.32817319,94997.0,94996.0,1.5571425]
[1736835941192,0.32817319,94997.0,94996.0,1.56643765]
[1736835941908,0.32817319,94997.0,94996.0,1.53489753]
[1736835944763,0.32817319,94997.0,94996.0,1.52889753]
[1736835947690,0.32996219,94997.0,94996.0,1.52889753]
[1736835949081,0.35296219,94997.0,94996.0,0.02889753]
[1736835949318,0.45296219,94997.0,94996.0,0.02585081]
[1736835949547,0.45296219,94997.0,94996.0,0.01960238]
[1736835950642,0.45296219,94997.0,94996.0,0.02060238]
[1736835951695,0.45696219,94997.0,94996.0,0.02060238]
[1736835952435,0.35696219,94997.0,94996.0,0.02060238]
[1736835953023,0.45696219,94997.0,94996.0,0.02060238]
[1736835955762,0.234089,94997.0,94996.0,0.02060238]
[1736835955963,0.20566219,94997.0,94996.0,0.63542622]
[1736835956171,0.20566219,94997.0,94996.0,2.36899494]
[1736835956368,0.20566219,94997.0,94996.0,2.34154365]
[1736835956798,0.20566219,94997.0,94996.0,2.34054365]
[1736835957015,0.20666219,94997.0,94996.0,2.34154365]
[1736835957172,0.102789,94997.0,94996.0,2.34154365]
[1736835957376,0.20266219,94997.0,94996.0,2.34054365]
[1736835957599,0.20766219,94997.0,94996.0,2.34054365]
[1736835957813,0.20766219,94997.0,94996.0,1.63872765]
[1736835958018,0.20366219,94997.0,94996.0,1.63872765]
[1736835958219,0.20366219,94997.0,94996.0,2.43674465]
[1736835958431,0.20566219,94997.0,94996.0,1.80766065]
[1736835959134,0.20466219,94997.0,94996.0,1.80766065]
[1736835959515,0.20266219,94997.0,94996.0,1.80766065]
[1736835959718,0.20366219,94997.0,94996.0,1.80766065]
[1736835960850,0.20566219,94997.0,94996.0,1.80766065]
[1736835961456,0.20366219,94997.0,94996.0,1.80766065]
[1736835961632,0.20466219,94997.0,94996.0,1.80766065]
[1736835962255,0.20366219,94997.0,94996.0,1.80766065]
[1736835962439,0.20266219,94997.0,94996.0,1.80766065]
[1736835963362,0.20366219,94997.0,94996.0,1.80766065]
[1736835963571,0.20266219,94997.0,94996.0,1.80766065]
[1736835963893,0.20366219,94997.0,94996.0,1.80766065]
[1736835964255,0.002789,94997.0,94996.0,0.30766065]
[1736835964455,0.003789,94997.0,94996.0,0.53710223]
[1736835964657,0.003789,94997.0,94996.0,0.62040223]
[1736835964866,0.003789,94997.0,94996.0,2.12040223]
[1736835965617,0.003789,94997.0,94996.0,2.13225063]
[1736835966132,0.002789,94997.0,94996.0,2.13225063]
[1736835966297,0.00179025,95003.0,94998.0,0.0833]
[1736835966448,0.00179025,95003.0,95002.0,0.25980384]
[1736835966671,0.00179025,95003.0,95002.0,2.21516642]
[1736835966884,0.00179025,95003.0,95002.0,4.03277142]
[1736835967109,0.00179025,95003.0,95002.0,3.70148082]
[1736835967556,0.00179025,95003.0,95002.0,3.66402282]
[1736835967783,0.00227873,95003.0,95002.0,3.37900582]
[1736835967982,0.00227873,95003.0,95002.0,3.3986082]
[1736835968228,0.00227873,95003.0,95002.0,3.2045892]
[1736835968464,0.00227873,95003.0,95002.0,2.74944759]
[1736835969159,0.00227873,95003.0,95002.0,2.75888759]
[1736835969304,0.00227873,95003.0,95002.0,1.84234559]
[1736835969740,0.00227873,95003.0,95002.0,1.84434559]
[1736835969938,0.00227873,95003.0,95002.0,3.81314659]
[1736835970139,0.00227873,95003.0,95002.0,4.19629701]
[1736835970337,0.00227873,95003.0,95002.0,4.00738901]
[1736835970537,0.00227873,95003.0,95002.0,4.00838901]
[1736835971096,0.00227873,95003.0,95002.0,3.99994901]
[1736835971263,0.00227873,95003.0,95002.0,4.00538901]
[1736835971442,0.00227873,95003.0,95002.0,4.00638901]
[1736835971647,0.00227873,95003.0,95002.0,3.84360701]
[1736835972014,0.00227873,95003.0,95002.0,3.75335001]
[1736835972160,0.00227873,95003.0,95002.0,3.75535001]
[1736835972382,0.00227873,95003.0,95002.0,3.64669501]
[1736835972601,0.00227873,95003.0,95002.0,3.64469501]
[1736835972770,0.00227873,95003.0,95002.0,3.65169501]
[1736835977461,0.00227873,95003.0,95002.0,3.65785945]
[1736835977658,0.00227873,95003.0,95002.0,3.62078745]
[1736835977873,0.00227873,95003.0,95002.0,3.42826045]
[1736835979122,0.00227873,95003.0,95002.0,3.32279445]
[1736835979323,0.00227873,95003.0,95002.0,3.16381745]
[1736835979522,0.00227873,95003.0,95002.0,3.03055745]
[1736835980376,0.00227873,95003.0,95002.0,3.02755745]
[1736835980551,0.00227873,95003.0,95002.0,3.02055745]
[1736835980755,0.00227873,95003.0,95002.0,3.02155745]
[1736835980916,0.00227873,95003.0,95002.0,3.02455745]
[1736835982191,0.00327873,95003.0,95002.0,3.02455745]
[1736835982341,0.00327873,95003.0,95002.0,3.02155745]
[1736835982543,0.00327873,95003.0,95002.0,3.02755745]
[1736835982782,0.00327873,95003.0,95002.0,3.02655745]
[1736835983100,0.00327873,95003.0,95002.0,3.02855745]
[1736835983505,0.00327873,95003.0,95002.0,3.02940925]
[1736835985538,0.00327873,95003.0,95002.0,1.85939525]
[1736835985690,0.00327873,95003.0,95002.0,3.87987025]
[1736835985851,0.00327873,95003.0,95002.0,3.98286625]
[1736835986058,0.00327873,95003.0,95002.0,3.74357825]
[1736835986305,0.00327873,95003.0,95002.0,3.72913825]
[1736835986508,0.00327873,95003.0,95002.0,2.61495467]
[1736835986711,0.00327873,95003.0,95002.0,2.61895467]
[1736835987596,0.00327873,95003.0,95002.0,2.65074002]
[1736835987797,0.00327873,95003.0,95002.0,2.65174002]
[1736835988204,0.00327873,95003.0,95002.0,2.20110002]
[1736835988472,0.10315192,95003.0,95002.0,1.82255367]
[1736835988669,0.20315192,95003.0,95002.0,1.65974428]
[1736835989005,0.20315192,95003.0,95002.0,1.65674428]
[1736835989428,0.20315192,95003.0,95002.0,1.65974428]
[1736835989630,0.20315192,95003.0,95002.0,1.65574428]
[1736835989828,0.20315192,95003.0,95002.0,1.65674428]
[1736835990389,0.10327873,95003.0,95002.0,1.80633528]
[1736835990576,0.20315192,95003.0,95002.0,1.80633528]
[1736835990739,0.10427873,95003.0,95002.0,1.80633528]
[1736835990940,0.20415192,95003.0,95002.0,1.80633528]
[1736835991483,0.20415192,95003.0,95002.0,1.78356728]
[1736835992124,0.00427873,95003.0,95002.0,1.78356728]
[1736835992408,0.00427873,95003.0,95002.0,2.14408828]
[1736835992601,0.00415204,95003.0,95002.0,2.17694021]
[1736835992912,0.00315204,95003.0,95002.0,2.17694021]
[1736835993738,0.00415204,95003.0,95002.0,2.17694021]
[1736835995206,0.00315204,95003.0,95002.0,2.17694021]
[1736835995712,0.10302523,95003.0,95002.0,1.81641921]
[1736835995904,0.20302523,95003.0,95002.0,1.78945921]
[1736835996309,0.20302523,95003.0,95002.0,1.68859621]
[1736835998665,0.20402523,95003.0,95002.0,1.68859621]
[1736836001094,0.20402523,95003.0,95002.0,1.68215621]
[1736836001256,0.20402523,95003.0,95002.0,1.68851621]
[1736836001657,0.20302523,95003.0,95002.0,1.68851621]
[1736836001991,0.20402523,95003.0,95002.0,1.68851621]
[1736836003099,0.20402523,95003.0,95002.0,1.68215621]
[1736836003304,0.20402523,95003.0,95002.0,1.68851621]
[1736836003549,0.20402523,95003.0,95002.0,1.82252821]
[1736836003751,0.20402523,95003.0,95002.0,1.65566428]
[1736836004184,0.20402523,95003.0,95002.0,0.18853061]
[1736836004370,0.32742523,95003.0,95002.0,0.04586044]
[1736836004515,0.32742523,95003.0,95002.0,0.03950044]
[1736836004899,0.32742523,95003.0,95002.0,0.03030258]
[1736836005109,0.32642523,95003.0,95002.0,0.03030258]
[1736836005311,0.32742523,95003.0,95002.0,0.03030258]
[1736836005913,0.34942523,95003.0,95002.0,0.03030258]
[1736836006119,0.45042523,95003.0,95002.0,0.03030258]
[1736836006254,0.55042523,95003.0,95002.0,0.03030258]
[1736836006455,0.45042523,95003.0,95002.0,0.03030258]
[1736836006660,0.55042523,95003.0,95002.0,0.03030258]
[1736836006871,0.54942523,95003.0,95002.0,0.02045418]
[1736836007133,0.54942523,95003.0,95002.0,0.02145418]
[1736836008266,0.55242523,95003.0,95002.0,0.02145418]
[1736836012681,0.35242523,95003.0,95002.0,0.02145418]
[1736836015484,0.34627319,94998.0,94997.0,0.0098517]
[1736836016008,0.444064,94997.0,94992.0,0.0098517]
[1736836016376,0.1,94993.0,94992.0,0.0098517]
[1736836017827,0.101,94993.0,94992.0,0.0098517]
[1736836018255,0.12210413,94993.0,94992.0,0.0098517]
[1736836019129,0.12310413,94993.0,94992.0,0.0098517]
[1736836022127,0.22297732,94993.0,94992.0,0.0098517]
[1736836022511,0.30357732,94993.0,94992.0,0.0098517]
[1736836028746,0.30357732,94993.0,94992.0,0.03040854]
[1736836035595,0.32657732,94993.0,94992.0,0.03040854]
[1736836035798,0.53341719,94992.0,94991.0,0.00014913]
[1736836036055,0.80911719,94992.0,94991.0,1.3e-07]
[1736836036264,0.42287319,94990.0,94989.0,3e-08]
[1736836036420,0.54857319,94990.0,94989.0,3e-08]
[1736836037024,0.65837703,94990.0,94989.0,3e-08]
[1736836037223,0.19987319,94958.0,94957.0,1.5]
[1736836037434,0.19987319,94958.0,94954.0,0.0008523]
[1736836037639,0.19987319,94958.0,94957.0,0.00804402]
[1736836037842,0.210621,94957.0,94954.0,0.0008523]
[1736836038236,0.210621,94957.0,94955.0,0.00491457]
[1736836038438,0.1,94956.0,94955.0,0.00805219]
[1736836038641,0.1,94956.0,94955.0,0.00819852]
[1736836038897,0.1,94956.0,94955.0,0.00014633]
[1736836039509,0.22287319,94956.0,94955.0,0.00014633]
[1736836039870,0.22687319,94956.0,94955.0,0.00014633]
[1736836040290,0.24834221,94956.0,94955.0,0.00014633]
[1736836040498,0.25034221,94956.0,94955.0,0.00014633]
[1736836040859,0.26270664,94956.0,94955.0,0.00014633]
[1736836042176,0.26270664,94956.0,94955.0,0.00099913]
[1736836055942,0.26270664,94956.0,94954.0,0.0008523]
[1736836055943,0.53349919,94955.0,94954.0,1e-08]
[1736836056153,0.61199919,94955.0,94954.0,4.852e-05]
[1736836057187,0.61499919,94955.0,94954.0,4.852e-05]
[1736836057392,0.61899919,94955.0,94954.0,0.00104852]
[1736836058193,0.61899919,94955.0,94954.0,4.852e-05]
[1736836058194,0.61499919,94955.0,94954.0,4.852e-05]
[1736836058605,0.61899919,94955.0,94954.0,0.00104852]
[1736836059138,0.61599919,94955.0,94954.0,0.00104852]
[1736836059349,0.61899919,94955.0,94954.0,0.00104852]
[1736836059705,0.61599919,94955.0,94954.0,0.00104852]
[1736836060124,0.61799919,94955.0,94954.0,0.00104852]
[1736836075000,1.30300303,94955.0,94954.0,5.2e-07]
[1736836075151,1.35030303,94955.0,94954.0,5.2e-07]
[1736836075835,1.34830303,94955.0,94954.0,5.2e-07]
[1736836076000,1.35330303,94955.0,94954.0,5.2e-07]
[1736836076615,0.19987319,94929.0,94928.0,0.0062]
[1736836076840,0.41060499,94929.0,94928.0,0.0062]
[1736836077966,0.210701,94921.0,94920.0,1.5]
[1736836078169,0.1,94924.0,94920.0,1.93241484]
[1736836078375,0.09987319,94926.0,94922.0,0.0816]
[1736836078578,0.09987319,94926.0,94924.0,0.0816]
[1736836078766,0.09987319,94926.0,94925.0,0.10980384]
[1736836078961,0.09987319,94926.0,94925.0,1.60980384]
[1736836079278,0.09987319,94926.0,94925.0,1.62954907]
[1736836080224,0.19987319,94926.0,94925.0,1.62954907]
[1736836080429,0.09987319,94926.0,94925.0,1.62954907]
[1736836080840,0.210688,94927.0,94926.0,0.082]
[1736836081037,4.88e-05,94929.0,94927.0,0.13]
[1736836081236,4.88e-05,94929.0,94928.0,1.87457897]
[1736836081444,4.88e-05,94929.0,94928.0,2.1274582]
[1736836081621,4.88e-05,94929.0,94928.0,3.6274582]
[1736836082020,4.88e-05,94929.0,94928.0,3.63065573]
[1736836082243,0.4132915,94955.0,94943.0,0.15]
[1736836082454,0.41334041,94955.0,94945.0,0.25980384]
[1736836082653,0.41334041,94955.0,94947.0,0.15]
[1736836082957,0.41334041,94955.0,94949.0,0.15]
[1736836083184,0.41334041,94955.0,94951.0,0.15]
[1736836083396,0.41334041,94955.0,94952.0,0.10980384]
[1736836083539,0.41334041,94955.0,94952.0,0.30897081]
[1736836083741,0.41334041,94955.0,94952.0,0.11491981]
[1736836084283,0.41634041,94955.0,94952.0,0.11491981]
[1736836084467,0.41334041,94955.0,94952.0,0.11491981]
[1736836084787,0.62496741,94955.0,94953.0,0.01974523]
[1736836084944,0.62796741,94955.0,94954.0,0.10980384]
[1736836085147,0.62696741,94955.0,94954.0,0.11491606]
[1736836085570,0.62796741,94955.0,94954.0,0.1180559]
[1736836085741,0.62796741,94955.0,94954.0,0.13780113]
[1736836085941,0.62696741,94955.0,94954.0,0.13780113]
[1736836086370,0.62796741,94955.0,94954.0,0.13780113]
[1736836087323,0.62496741,94955.0,94954.0,0.13780113]
[1736836087941,0.62696741,94955.0,94954.0,0.13780113]
[1736836088112,0.62396741,94955.0,94954.0,0.13780113]
[1736836088417,0.62696741,94955.0,94954.0,0.13780113]
[1736836088798,0.62596741,94955.0,94954.0,0.13780113]
[1736836088957,0.62696741,94955.0,94954.0,0.13780113]
[1736836096565,0.62696741,94955.0,94954.0,1.63780113]
[1736836099516,0.62696741,94955.0,94954.0,0.13780113]
[1736836100028,0.62696741,94955.0,94954.0,1.63780113]
[1736836100710,0.62596741,94955.0,94954.0,1.63780113]
[1736836100908,0.62696741,94955.0,94954.0,1.63780113]
[1736836101086,0.62496741,94955.0,94954.0,1.63780113]
[1736836101483,0.62696741,94955.0,94954.0,1.63780113]
[1736836102270,0.62696741,94955.0,94954.0,1.64392113]
[1736836102702,0.62696741,94955.0,94954.0,1.65630117]
[1736836103064,0.62696741,94955.0,94954.0,0.15630117]
[1736836103594,0.62696741,94955.0,94954.0,1.65630117]
[1736836104330,0.62696741,94955.0,94954.0,1.64392113]
[1736836105916,0.41634041,94955.0,94954.0,1.64392113]
[1736836106520,0.41634041,94955.0,94954.0,0.14392113]
[1736836107083,0.41634041,94955.0,94954.0,1.64392113]
[1736836109327,0.39260726,94955.0,94954.0,1.64392113]
[1736836111128,0.39260726,94955.0,94954.0,0.14392113]
[1736836111494,0.39260726,94955.0,94954.0,1.64392113]
[1736836113784,0.29273407,94955.0,94954.0,1.89562513]
[1736836114099,0.29273407,94955.0,94954.0,1.90174513]
[1736836114287,0.29273407,94955.0,94954.0,1.93467168]
[1736836114483,0.29273407,94955.0,94954.0,1.67684768]
[1736836114699,0.39260726,94955.0,94954.0,0.56607568]
[1736836114986,0.29260726,94955.0,94954.0,0.56607568]
[1736836115317,0.39260726,94955.0,94954.0,2.06607568]
[1736836115600,0.10004891,94955.0,94954.0,2.06607568]
[1736836115796,0.10304891,94955.0,94954.0,2.06607568]
[1736836116197,0.10104891,94955.0,94954.0,2.06692868]
[1736836116356,0.10384022,94955.0,94954.0,2.06692868]
[1736836116812,0.10484022,94955.0,94954.0,2.06692868]
[1736836116977,0.20471341,94955.0,94954.0,2.06692868]
[1736836117176,0.20471341,94955.0,94954.0,2.09855995]
[1736836117378,0.20371341,94955.0,94954.0,2.09855995]
[1736836117584,0.10384022,94955.0,94954.0,2.09855995]
[1736836117802,0.20371341,94955.0,94954.0,2.09855995]
[1736836118309,0.00384022,94955.0,94954.0,0.67435995]
[1736836118446,0.00184022,94955.0,94954.0,0.67435995]
[1736836118805,0.00184022,94955.0,94954.0,2.17435995]
[1736836118981,0.10384022,94955.0,94954.0,2.17435995]
[1736836119388,0.10484022,94955.0,94954.0,2.17535995]
[1736836119567,0.10284022,94955.0,94954.0,2.17435995]
[1736836119767,0.06888036,94955.0,94954.0,2.17435995]
[1736836120098,0.06888036,94955.0,94954.0,1.96817395]
[1736836120296,0.06888036,94955.0,94954.0,1.71125195]
[1736836120880,0.06888036,94955.0,94954.0,1.71025195]
[1736836121291,0.06888036,94955.0,94954.0,1.70925195]
[1736836121673,0.27950636,94955.0,94954.0,1.71025195]
[1736836122003,0.27950636,94955.0,94954.0,1.70925195]
[1736836122173,0.27950636,94955.0,94954.0,1.71025195]
[1736836123083,0.27950636,94955.0,94954.0,0.21025195]
[1736836123661,0.27950636,94955.0,94954.0,1.71025195]
[1736836125307,0.27950636,94955.0,94954.0,1.65887545]
[1736836126111,0.27950636,94955.0,94954.0,1.70925528]
[1736836126309,0.28050636,94955.0,94954.0,1.70925528]
[1736836128741,0.28229767,94955.0,94954.0,1.70925528]
[1736836133315,0.28229767,94955.0,94954.0,2.03924328]
[1736836133792,0.28229767,94955.0,94954.0,1.70925528]
[1736836133973,0.28229767,94955.0,94954.0,1.70321528]
[1736836134181,0.28229767,94955.0,94954.0,1.70925528]
[1736836134363,0.28229767,94955.0,94954.0,1.82155028]
[1736836134771,0.28229767,94955.0,94954.0,1.70925528]
[1736836135827,0.38217086,94955.0,94954.0,1.70925528]
[1736836136717,0.38217086,94955.0,94954.0,1.70321528]
[1736836136919,0.38217086,94955.0,94954.0,1.70925528]
[1736836137124,0.45727086,94955.0,94954.0,1.70925528]
[1736836137541,0.45627086,94955.0,94954.0,1.70925528]
[1736836137723,0.45627086,94955.0,94954.0,0.20925528]
[1736836137927,0.45727086,94955.0,94954.0,0.20926911]
[1736836139075,0.45827086,94955.0,94954.0,0.20926911]
[1736836139271,0.45727086,94955.0,94954.0,0.20926911]
[1736836139673,0.46027086,94955.0,94954.0,0.20926911]
[1736836140018,0.43653739,94955.0,94954.0,0.17632873]
[1736836140372,0.43597922,94955.0,94954.0,0.17632873]
[1736836140575,0.36087922,94955.0,94954.0,0.20926731]
[1736836142853,0.36087922,94955.0,94954.0,0.17632873]
[1736836143409,0.36087922,94955.0,94954.0,0.20926789]
[1736836143643,0.36087922,94955.0,94954.0,0.17632873]
[1736836143953,0.36087922,94955.0,94954.0,0.20322752]
[1736836144160,0.36087922,94955.0,94954.0,0.20926752]
[1736836147439,0.36087922,94955.0,94954.0,0.41253852]
[1736836147603,0.26100603,94955.0,94954.0,0.41253852]
[1736836148488,0.25700603,94955.0,94954.0,1.91253852]
[1736836148778,0.26100603,94955.0,94954.0,1.91253852]
[1736836149695,0.07367167,94955.0,94954.0,1.91253852]
[1736836149891,0.17354486,94955.0,94954.0,1.91253852]
[1736836150641,0.17354486,94955.0,94954.0,1.70926752]
[1736836150951,0.17054486,94955.0,94954.0,1.70926752]
[1736836151359,0.1046645,94955.0,94954.0,1.70926752]
[1736836151571,0.17354486,94955.0,94954.0,0.20926752]
[1736836152006,0.17354486,94955.0,94954.0,1.70926752]
[1736836152187,0.17054486,94955.0,94954.0,1.70926752]
[1736836152374,0.17454486,94955.0,94954.0,1.70926752]
[1736836152772,0.17354486,94955.0,94954.0,1.70926752]
[1736836153168,0.17454486,94955.0,94954.0,1.70926752]
[1736836153575,0.17354486,94955.0,94954.0,1.70926752]
[1736836154029,0.17454486,94955.0,94954.0,1.83530752]
[1736836154189,0.17154486,94955.0,94954.0,1.83530752]
[1736836154374,0.17454486,94955.0,94954.0,0.20926752]
[1736836154598,0.17454486,94955.0,94954.0,0.20322752]
[1736836154599,0.25624486,94955.0,94954.0,0.20322752]
[1736836154833,0.25624486,94955.0,94954.0,0.17628873]
[1736836155119,0.30444486,94955.0,94954.0,0.17028873]
[1736836155621,0.30144486,94955.0,94954.0,0.17028873]
[1736836155925,0.30044486,94955.0,94954.0,0.06048489]
[1736836156165,0.30444486,94955.0,94954.0,0.04724234]
[1736836156334,0.30444486,94955.0,94954.0,0.03887189]
[1736836156641,0.30344486,94955.0,94954.0,0.03887189]
[1736836157000,0.30444486,94955.0,94954.0,0.03887189]
[1736836157226,0.32444486,94955.0,94954.0,0.03887189]
[1736836157545,0.32744486,94955.0,94954.0,0.03887189]
[1736836158567,0.32744486,94955.0,94954.0,0.00725353]
[1736836159823,0.42744486,94955.0,94954.0,0.00725353]
[1736836160027,0.52744486,94955.0,94954.0,0.00725353]
[1736836160302,0.67744486,94955.0,94954.0,0.00725353]
[1736836160933,0.67344486,94955.0,94954.0,0.00725353]
[1736836161176,0.68244486,94955.0,94954.0,0.00825353]
[1736836161408,0.68244486,94955.0,94954.0,0.001]
[1736836162194,0.68644486,94955.0,94954.0,0.001]
[1736836163265,0.58644486,94955.0,94954.0,0.001853]
[1736836163497,0.4175645,94955.0,94954.0,0.001853]
[1736836164664,0.33644486,94955.0,94954.0,0.001853]
[1736836164908,0.43644486,94955.0,94954.0,0.001853]
[1736836173992,0.33644486,94955.0,94954.0,0.001853]
[1736836174692,0.2675645,94955.0,94954.0,0.001853]
[1736836174933,0.33644486,94955.0,94954.0,0.001853]
[1736836183517,0.32744486,94955.0,94954.0,0.000853]
[1736836183822,0.33644486,94955.0,94954.0,0.000853]
[1736836185833,0.28824486,94955.0,94954.0,0.000853]
[1736836187967,0.2193645,94955.0,94954.0,0.000853]
[1736836189251,0.28824486,94955.0,94954.0,0.000853]
[1736836189622,0.2193645,94955.0,94954.0,0.000853]
[1736836190412,0.28824486,94955.0,94954.0,0.000853]
[1736836190606,0.2193645,94955.0,94954.0,0.000853]
[1736836190805,0.28824486,94955.0,94954.0,0.000853]
[1736836191133,0.2193645,94955.0,94954.0,0.000853]
[1736836192219,0.28824486,94955.0,94954.0,0.000853]